bitfinex-derivatives/quotes_BNBF0:USTF0_20251010
["timestamp","ask_amount","ask_price","bid_price","bid_amount"]
[1760115632392,0.44840813,1228.5,1227.6,0.67418753]
[1760115632691,0.44840813,1228.4,1227.6,0.67418753]
[1760115632891,0.44840813,1228.3,1227.6,0.67418753]
[1760115633192,0.14164565,1229.1,1227.6,0.67418753]
[1760115634089,0.45270713,1229.0,1227.6,0.67418753]
[1760115634286,0.45270713,1228.9,1227.6,0.67418753]
[1760115634491,0.45270713,1228.8,1227.6,0.67418753]
[1760115634691,0.45270713,1228.7,1227.6,0.67418753]
[1760115634891,0.45270713,1228.6,1227.6,0.67418753]
[1760115635187,2.7763498,1231.3,1227.6,0.67418753]
[1760115635188,0.14163067,1229.3,1227.6,0.67418753]
[1760115635489,0.44747751,1229.5,1227.6,0.67418753]
[1760115635790,0.44747751,1229.4,1227.6,0.67418753]
[1760115635989,0.44747751,1229.3,1227.6,0.67418753]
[1760115636192,0.44747751,1229.2,1227.6,0.67418753]
[1760115636388,0.44747751,1229.1,1227.6,0.67418753]
[1760115636691,0.44747751,1229.0,1227.6,0.67418753]
[1760115636890,0.44747751,1228.9,1227.6,0.67418753]
[1760115637091,0.14159839,1229.5,1227.6,0.67418753]
[1760115637292,0.80715323,1228.5,1227.6,0.67418753]
[1760115637493,0.44748471,1228.4,1227.6,0.67418753]
[1760115637688,0.44748471,1228.3,1227.6,0.67418753]
[1760115637992,0.44748471,1228.2,1227.6,0.67418753]
[1760115638192,0.80715323,1228.4,1227.6,0.67418753]
[1760115638390,0.14159839,1229.5,1227.6,0.67418753]
[1760115639992,0.14159839,1229.5,1227.6,1.26877394]
[1760115640593,0.80715323,1230.8,1227.6,1.26877394]
[1760115640792,0.80715323,1230.9,1227.6,1.26877394]
[1760115640996,0.14155865,1229.6,1227.6,1.26877394]
[1760115641193,0.80715323,1230.9,1227.6,0.67418753]
[1760115641595,0.14155692,1229.6,1227.6,0.67418753]
[1760115641797,0.80715323,1230.9,1227.6,0.67418753]
[1760115642092,0.1415647,1229.5,1227.6,0.67418753]
[1760115642294,0.80715323,1230.9,1227.6,0.67418753]
[1760115642497,0.80715323,1230.3,1227.6,0.67418753]
[1760115642794,0.14156786,1229.4,1227.6,0.67418753]
[1760115642995,0.80715323,1230.3,1227.6,0.67418753]
[1760115643194,0.14158514,1229.4,1227.6,0.67418753]
[1760115643593,0.80715323,1230.5,1227.6,0.67418753]
[1760115643794,0.14158226,1229.4,1227.6,0.67418753]
[1760115643992,0.80715323,1230.5,1227.6,0.67418753]
[1760115644395,0.14157938,1229.4,1227.6,0.67418753]
[1760115644594,0.80715323,1230.5,1227.6,0.67418753]
[1760115644999,0.14157938,1229.4,1227.6,0.67418753]
[1760115645195,0.80715323,1230.5,1227.6,0.67418753]
[1760115645394,0.80715323,1229.9,1227.6,0.67418753]
[1760115645597,0.14157938,1229.4,1227.6,0.67418753]
[1760115645994,1.26484835,1229.3,1227.6,0.67418753]
[1760115646600,0.80715323,1228.0,1227.6,0.67418753]
[1760115646798,1.26484835,1227.9,1227.6,0.67418753]
[1760115646998,1.26484835,1227.9,1224.5,0.14182345]
[1760115646999,0.80715323,1227.7,1224.5,0.14182345]
[1760115647300,1.26484835,1227.6,1224.5,0.14182345]
[1760115647500,1.983107,1228.6,1224.6,0.56412727]
[1760115647696,2.7763498,1229.0,1227.8,0.59355561]
[1760115647899,2.7763498,1229.0,1227.9,1.15768288]
[1760115648199,0.14157938,1229.4,1228.0,0.56412727]
[1760115648397,0.14157938,1229.4,1228.1,0.56412727]
[1760115648599,0.14157938,1229.4,1228.2,1.15768288]
[1760115648795,0.14157938,1229.4,1228.3,0.56412727]
[1760115648994,0.14157938,1229.4,1228.4,0.56412727]
[1760115649200,0.14157938,1229.4,1228.5,0.56412727]
[1760115649399,0.14157938,1229.4,1228.1,0.59355561]
[1760115649400,0.14157938,1229.4,1228.6,0.56412727]
[1760115649598,0.14157938,1229.4,1227.3,0.59355561]
[1760115649898,0.14157938,1229.4,1227.4,0.5347874]
[1760115650101,0.14157938,1229.4,1227.5,0.5347874]
[1760115650301,0.14157938,1229.4,1227.6,0.5347874]
[1760115650495,0.14157938,1229.4,1227.7,0.5347874]
[1760115650701,0.14157938,1229.4,1227.1,0.59355561]
[1760115650902,0.14157938,1229.4,1227.2,1.12557962]
[1760115651103,0.14157938,1229.4,1227.3,0.53202401]
[1760115651302,0.14157938,1229.4,1227.4,0.53202401]
[1760115651501,0.14157938,1229.4,1227.5,0.53202401]
[1760115651700,0.14157938,1229.4,1227.6,0.53202401]
[1760115651901,0.14157938,1229.4,1227.7,0.53202401]
[1760115652105,0.14157938,1229.4,1227.3,0.59355561]
[1760115652302,0.14157938,1229.4,1227.4,0.53191475]
[1760115652604,0.14157938,1229.4,1227.2,0.59355561]
[1760115652605,0.14157938,1229.4,1227.5,0.53191475]
[1760115652804,0.14157938,1229.4,1227.6,0.53191475]
[1760115653001,0.14157938,1229.4,1227.0,0.59355561]
[1760115653301,0.14157938,1229.4,1227.1,0.53235744]
[1760115653501,0.14157938,1229.4,1227.2,0.53235744]
[1760115653705,0.14157938,1229.4,1227.3,0.53235744]
[1760115653903,0.14157938,1229.4,1226.9,0.59355561]
[1760115654103,0.14157938,1229.4,1227.0,0.53247275]
[1760115654306,0.14157938,1229.4,1227.1,0.53247275]
[1760115654602,0.14157938,1229.4,1227.2,0.53247275]
[1760115654807,0.14157938,1229.4,1227.3,0.53247275]
[1760115655106,0.14157938,1229.4,1226.8,0.59355561]
[1760115655306,0.14157938,1229.4,1226.9,0.53252072]
[1760115655603,0.14157938,1229.4,1227.0,0.53252072]
[1760115655802,0.14157938,1229.4,1227.1,0.53252072]
[1760115656006,0.14157938,1229.4,1226.7,0.59355561]
[1760115656207,0.14157938,1229.4,1226.8,0.53276123]
[1760115656408,0.14157938,1229.4,1226.9,0.53276123]
[1760115656609,0.14157938,1229.4,1227.0,0.53276123]
[1760115656809,0.14157938,1229.4,1226.6,0.59355561]
[1760115657006,0.14157938,1229.4,1226.7,0.53303152]
[1760115657209,0.14157938,1229.4,1226.8,0.53303152]
[1760115657504,0.14157938,1229.4,1226.9,0.53303152]
[1760115657709,0.14157938,1229.4,1226.5,0.59355561]
[1760115657907,0.14157938,1229.4,1226.6,0.53266482]
[1760115658112,0.14157938,1229.4,1226.7,0.53266482]
[1760115658306,0.14157938,1229.4,1226.8,0.53266482]
[1760115658508,0.14157938,1229.4,1226.9,0.53266482]
[1760115658707,0.14157938,1229.4,1226.4,0.59355561]
[1760115659011,0.14157938,1229.4,1226.5,0.53263913]
[1760115659307,0.14157938,1229.4,1226.6,0.53263913]
[1760115659506,0.14157938,1229.4,1226.7,0.53263913]
[1760115659707,0.14157938,1229.4,1226.8,0.53263913]
[1760115659908,0.14157938,1229.4,1226.9,0.53263913]
[1760115660106,0.14157938,1229.4,1227.0,0.53263913]
[1760115660311,0.14157938,1229.4,1227.1,0.53263913]
[1760115660610,0.14157938,1229.4,1226.3,0.59355561]
[1760115660808,0.14157938,1229.4,1226.4,0.53296659]
[1760115661011,0.14157938,1229.4,1226.5,0.53296659]
[1760115661208,0.14157938,1229.4,1226.6,0.53296659]
[1760115661407,0.14157938,1229.4,1226.7,0.53296659]
[1760115661608,0.14157938,1229.4,1226.8,0.53296659]
[1760115661808,0.14157938,1229.4,1226.9,0.53296659]
[1760115662013,0.14157938,1229.4,1227.0,0.53296659]
[1760115662208,0.14157938,1229.4,1227.1,0.53296659]
[1760115662512,0.14157938,1229.4,1226.4,0.59355561]
[1760115662709,0.14157938,1229.4,1226.5,0.5329834]
[1760115663009,0.14157938,1229.4,1226.6,0.5329834]
[1760115663313,0.14157938,1229.4,1226.7,0.5329834]
[1760115663513,0.14157938,1229.4,1226.3,0.59355561]
[1760115663812,0.14157938,1229.4,1226.4,1.12616572]
[1760115664008,0.14157938,1229.4,1226.5,0.53261011]
[1760115664210,0.14157938,1229.4,1226.6,0.53261011]
[1760115664408,0.14157938,1229.4,1226.7,0.53261011]
[1760115664708,0.14157938,1229.4,1226.8,0.53261011]
[1760115664912,0.14157938,1229.4,1226.3,0.59355561]
[1760115665112,0.14157938,1229.4,1226.4,0.53260977]
[1760115665319,0.14157938,1229.4,1226.5,0.53260977]
[1760115665513,0.14157938,1229.4,1226.6,0.53260977]
[1760115665713,0.14157938,1229.4,1226.7,0.53260977]
[1760115665911,0.14157938,1229.4,1226.8,0.53260977]
[1760115666112,0.14157938,1229.4,1226.9,0.53260977]
[1760115666312,0.14157938,1229.4,1226.4,0.59355561]
[1760115666511,0.14157938,1229.4,1226.5,0.53412394]
[1760115666714,0.14157938,1229.4,1226.6,0.53412394]
[1760115666913,0.14157938,1229.4,1226.7,0.53412394]
[1760115667114,0.14157938,1229.4,1226.6,0.59355561]
[1760115667115,0.14157938,1229.4,1226.8,0.53412394]
[1760115667309,0.14157938,1229.4,1226.9,0.53412394]
[1760115667513,0.14157938,1229.4,1226.5,0.59355561]
[1760115667711,0.14157938,1229.4,1226.6,0.53432414]
[1760115667914,0.14157938,1229.4,1226.7,0.53432414]
[1760115668117,0.14157938,1229.4,1226.8,0.53432414]
[1760115668313,0.14157938,1229.4,1226.9,0.53432414]
[1760115668515,0.14157938,1229.4,1227.0,0.53432414]
[1760115668714,0.14157938,1229.4,1227.1,0.53432414]
[1760115668919,0.14157938,1229.4,1226.7,0.59355561]
[1760115669116,0.14157938,1229.4,1226.8,1.12818995]
[1760115669417,0.14157938,1229.4,1226.9,0.53463434]
[1760115669617,0.14157938,1229.4,1227.0,0.53463434]
[1760115669815,0.14157938,1229.4,1227.1,0.53463434]
[1760115670014,0.14157938,1229.4,1226.4,0.79140748]
[1760115670015,0.14157938,1229.4,1226.6,0.59355561]
[1760115670214,0.14157938,1229.4,1226.7,0.53526432]
[1760115670416,0.14157938,1229.4,1226.8,0.53526432]
[1760115670719,0.14157938,1229.4,1226.9,0.53526432]
[1760115670918,0.14157938,1229.4,1226.4,0.59355561]
[1760115671115,0.14157938,1229.4,1226.5,0.53590788]
[1760115671419,0.14157938,1229.4,1226.6,0.53590788]
[1760115671613,0.14157938,1229.4,1226.7,0.53590788]
[1760115671820,0.14157938,1229.4,1226.8,0.53590788]
[1760115672018,0.14157938,1229.4,1226.9,0.53590788]
[1760115672219,0.14157938,1229.4,1226.4,0.59355561]
[1760115672419,0.14157938,1229.4,1226.2,0.79140748]
[1760115672420,0.14157938,1229.4,1226.5,1.12995444]
[1760115672715,0.14157938,1229.4,1226.6,0.53639883]
[1760115672914,0.14157938,1229.4,1226.7,0.53639883]
[1760115673119,0.14157938,1229.4,1226.8,0.53639883]
[1760115673318,0.14157938,1229.4,1226.9,0.5368182]
[1760115673516,0.14157938,1229.4,1226.6,0.59355561]
[1760115673719,0.14157938,1229.4,1226.7,0.53684284]
[1760115673918,0.14157938,1229.4,1226.8,0.53684284]
[1760115674118,0.14157938,1229.4,1226.9,0.53684284]
[1760115674418,0.14157938,1229.4,1226.5,0.59355561]
[1760115674622,0.14157938,1229.4,1226.6,0.5370481]
[1760115674821,0.14157938,1229.4,1226.7,0.5370481]
[1760115675022,0.14157938,1229.4,1226.8,0.53711621]
[1760115675218,0.14157938,1229.4,1226.3,0.59355561]
[1760115675519,0.14157938,1229.4,1226.4,0.53699849]
[1760115675824,0.14157938,1229.4,1226.5,0.53699849]
[1760115676024,0.14157938,1229.4,1226.6,0.53699849]
[1760115676222,0.14157938,1229.4,1226.7,0.53699849]
[1760115676422,0.14157938,1229.4,1226.8,0.53699849]
[1760115676622,0.14157938,1229.4,1226.3,0.59355561]
[1760115676822,0.14157938,1229.4,1226.4,0.5363704]
[1760115677020,0.14157938,1229.4,1226.5,0.5363704]
[1760115677318,0.14157938,1229.4,1226.6,0.5363704]
[1760115677522,0.14157938,1229.4,1226.3,0.59355561]
[1760115677523,0.14157938,1229.4,1226.7,0.5363704]
[1760115677721,0.14157938,1229.4,1226.8,0.5363704]
[1760115677919,0.14157938,1229.4,1226.3,0.59355561]
[1760115678124,0.14157938,1229.4,1226.4,0.53620207]
[1760115678423,0.14157938,1229.4,1226.5,0.53620207]
[1760115678619,0.14157938,1229.4,1226.6,0.53620207]
[1760115678826,0.14157938,1229.4,1226.7,0.53620207]
[1760115679125,0.14157938,1229.4,1226.8,0.53620207]
[1760115679423,0.14157938,1229.4,1226.4,0.59355561]
[1760115679424,0.14157938,1229.4,1226.9,0.53620207]
[1760115679621,0.14157938,1229.4,1226.4,0.59355561]
[1760115679822,0.14157938,1229.4,1226.5,0.53588315]
[1760115680121,0.14157938,1229.4,1226.3,0.59355561]
[1760115680122,0.14157938,1229.4,1226.6,0.53588315]
[1760115680322,0.14157938,1229.4,1226.7,0.53588315]
[1760115680521,0.14157938,1229.4,1226.8,0.53588315]
[1760115680726,0.14157938,1229.4,1226.9,0.53588315]
[1760115680925,0.14157938,1229.4,1226.3,0.59355561]
[1760115681223,0.14157938,1229.4,1226.4,0.53528041]
[1760115681422,0.14157938,1229.4,1226.5,0.53528041]
[1760115681620,0.14157938,1229.4,1226.6,0.53528041]
[1760115681821,0.14157938,1229.4,1226.1,0.59355561]
[1760115682023,0.14157938,1229.4,1226.2,0.53542472]
[1760115682223,0.14157938,1229.4,1226.3,0.53542472]
[1760115682423,0.14157938,1229.4,1226.4,0.53542472]
[1760115682623,0.14157938,1229.4,1226.5,0.53542472]
[1760115682822,0.14157938,1229.4,1226.6,0.53542472]
[1760115683022,0.14157938,1229.4,1226.1,0.59355561]
[1760115683226,0.14157938,1229.4,1226.2,0.53531963]
[1760115683427,0.14157938,1229.4,1226.3,0.53531963]
[1760115683723,0.14157938,1229.4,1226.4,0.53531963]
[1760115683930,0.14157938,1229.4,1225.9,0.59355561]
[1760115684127,0.14157938,1229.4,1226.0,0.53537624]
[1760115684325,0.14157938,1229.4,1226.1,0.53537624]
[1760115684524,0.14157938,1229.4,1226.2,0.53537624]
[1760115684725,0.14157938,1229.4,1226.3,0.53537624]
[1760115685028,0.14157938,1229.4,1226.4,0.53537624]
[1760115685225,0.14157938,1229.4,1226.0,0.59355561]
[1760115685428,0.14157938,1229.4,1226.1,0.53523891]
[1760115685725,0.14157938,1229.4,1226.2,0.53523891]
[1760115685924,0.14157938,1229.4,1226.3,0.53523891]
[1760115686126,0.14157938,1229.4,1226.4,0.53523891]
[1760115686328,0.14157938,1229.4,1225.9,0.59355561]
[1760115686629,0.14157938,1229.4,1226.0,1.12843708]
[1760115686825,0.14157938,1229.4,1226.1,0.53488147]
[1760115687130,0.14157938,1229.4,1226.2,1.12843708]
[1760115687328,0.14157938,1229.4,1226.3,1.12843708]
[1760115687631,0.14157938,1229.4,1226.4,0.53488147]
[1760115687830,0.14157938,1229.4,1226.5,0.53488147]
[1760115688028,0.14157938,1229.4,1226.6,0.53488147]
[1760115688227,0.14157938,1229.4,1226.1,0.59355561]
[1760115688431,0.14157938,1229.4,1226.2,0.53443967]
[1760115688630,0.14157938,1229.4,1226.3,0.53443967]
[1760115688829,0.14157938,1229.4,1226.4,0.53443967]
[1760115689131,0.14157938,1229.4,1226.5,0.53443967]
[1760115689329,0.14157938,1229.4,1226.6,0.53443967]
[1760115689629,0.14157938,1229.4,1226.7,0.53443967]
[1760115689833,0.14157938,1229.4,1226.8,0.53443967]
[1760115690038,0.14157938,1229.4,1226.9,0.53443967]
[1760115690336,0.14157938,1229.4,1227.0,0.53443967]
[1760115690536,0.14157938,1229.4,1226.5,0.59355561]
[1760115690738,0.14157938,1229.4,1226.6,0.53389359]
[1760115690937,0.14157938,1229.4,1226.7,0.53389359]
[1760115691140,0.14157938,1229.4,1226.8,0.53389359]
[1760115691439,0.14157938,1229.4,1226.9,0.53389359]
[1760115691738,0.14157938,1229.4,1227.0,0.53389359]
[1760115691939,0.14157938,1229.4,1226.5,0.59355561]
[1760115692137,0.14157938,1229.4,1226.6,0.53393559]
[1760115692337,0.14157938,1229.4,1226.7,0.53393559]
[1760115692536,0.14157938,1229.4,1226.1,0.59355561]
[1760115692740,0.14157938,1229.4,1226.2,0.53454093]
[1760115692941,0.14157938,1229.4,1226.3,0.53454093]
[1760115693141,0.14157938,1229.4,1224.3,1.9688365]
[1760115693142,0.14157938,1229.4,1226.4,0.53454093]
[1760115693338,0.14157938,1229.4,1225.9,0.59355561]
[1760115693539,0.14157938,1229.4,1226.0,0.53463042]
[1760115693843,0.14157938,1229.4,1226.1,0.53463042]
[1760115694043,0.14157938,1229.4,1226.2,0.53463042]
[1760115694341,0.14157938,1229.4,1226.3,0.53463042]
[1760115694544,0.14157938,1229.4,1226.4,0.53463042]
[1760115694742,0.14157938,1229.4,1225.9,0.59355561]
[1760115694943,0.14157938,1229.4,1226.0,0.5346735]
[1760115695142,0.14157938,1229.4,1226.1,0.5346735]
[1760115695340,0.14157938,1229.4,1226.2,0.5346735]
[1760115695543,0.14157938,1229.4,1226.3,0.5346735]
[1760115695743,0.14157938,1229.4,1226.4,0.5346735]
[1760115696043,0.14157938,1229.4,1226.5,0.5346735]
[1760115696343,0.14157938,1229.4,1226.0,0.59355561]
[1760115696543,0.14157938,1229.4,1226.1,0.53529993]
[1760115696742,0.14157938,1229.4,1226.2,0.53529993]
[1760115696943,0.14157938,1229.4,1226.3,0.53529993]
[1760115697241,0.14157938,1229.4,1226.4,0.53529993]
[1760115697441,0.14157938,1229.4,1226.5,0.53529993]
[1760115697642,0.14157938,1229.4,1226.1,0.59355561]
[1760115697840,0.14157938,1229.4,1226.2,0.53559813]
[1760115698043,0.14157938,1229.4,1226.3,0.53559813]
[1760115698241,0.14157938,1229.4,1226.4,0.53559813]
[1760115698441,0.14157938,1229.4,1226.5,0.53559813]
[1760115698649,0.14157938,1229.4,1226.0,0.59355561]
[1760115698846,0.14157938,1229.4,1226.1,0.53804218]
[1760115699046,0.14157938,1229.4,1226.2,0.53804218]
[1760115699350,0.14157938,1229.4,1226.3,0.53804218]
[1760115699547,0.14157938,1229.4,1226.4,0.53804218]
[1760115699845,0.14157938,1229.4,1226.5,0.53804218]
[1760115700046,0.14157938,1229.4,1225.8,0.59355561]
[1760115700247,0.14157938,1229.4,1225.9,0.53854395]
[1760115700546,0.14157938,1229.4,1226.0,0.53854395]
[1760115700844,0.14157938,1229.4,1226.1,0.53854395]
[1760115701042,0.14157938,1229.4,1226.2,0.53854395]
[1760115701245,0.14157938,1229.4,1226.3,0.53854395]
[1760115701446,0.14157938,1229.4,1226.4,0.53854395]
[1760115701644,0.14157938,1229.4,1225.7,0.59355561]
[1760115701844,0.14157938,1229.4,1225.8,0.53906775]
[1760115702047,0.14157938,1229.4,1225.9,0.53906775]
[1760115702245,0.14157938,1229.4,1226.0,0.53906775]
[1760115702448,0.14157938,1229.4,1226.1,0.53906775]
[1760115702649,0.14157938,1229.4,1226.2,0.53906775]
[1760115702949,0.14157938,1229.4,1225.6,0.59355561]
[1760115703249,0.14157938,1229.4,1225.9,0.59355561]
[1760115703549,0.14157938,1229.4,1226.0,0.53954069]
[1760115703747,0.14157938,1229.4,1226.1,0.53954069]
[1760115704046,0.14157938,1229.4,1226.2,0.53954069]
[1760115704246,0.14157938,1229.4,1226.3,0.53954069]
[1760115704444,0.14157938,1229.4,1226.4,0.53954069]
[1760115704646,0.14157938,1229.4,1226.5,0.53954069]
[1760115704851,0.14157938,1229.4,1226.6,0.54098444]
[1760115705145,0.14157938,1229.4,1226.0,0.59355561]
[1760115705346,0.14157938,1229.4,1226.1,0.54093891]
[1760115705649,1.983107,1229.2,1226.2,0.54093891]
[1760115705850,1.983107,1229.2,1226.3,0.54093891]
[1760115706045,0.14157938,1229.4,1226.4,0.54093891]
[1760115706248,0.14157938,1229.4,1226.5,0.54093891]
[1760115706449,0.14157938,1229.4,1226.6,0.54093891]
[1760115706646,0.14157938,1229.4,1226.7,0.54093891]
[1760115706847,0.14157938,1229.4,1226.0,0.59355561]
[1760115706848,0.14157938,1229.4,1226.8,0.54093891]
[1760115707049,0.14157938,1229.4,1226.0,0.59355561]
[1760115707250,0.14157938,1229.4,1226.1,0.54181567]
[1760115707450,0.14157938,1229.4,1226.2,0.54181567]
[1760115707648,0.14157938,1229.4,1226.3,0.54181567]
[1760115707853,0.14157938,1229.4,1226.4,0.54181567]
[1760115708052,0.14157938,1229.4,1226.5,0.54181567]
[1760115708250,0.14157938,1229.4,1226.6,0.54181567]
[1760115708452,0.14157938,1229.4,1225.9,0.59355561]
[1760115708653,0.14157938,1229.4,1226.0,0.54237443]
[1760115708850,0.14157938,1229.4,1226.1,0.54237443]
[1760115709050,0.14157938,1229.4,1226.2,0.54237443]
[1760115709352,0.14157938,1229.4,1226.3,0.54237443]
[1760115709551,0.14157938,1229.4,1226.4,0.54237443]
[1760115709749,1.983107,1229.0,1226.0,0.59355561]
[1760115709954,1.983107,1229.0,1226.1,0.54271682]
[1760115710253,1.983107,1228.8,1226.2,0.54271682]
[1760115710454,1.983107,1228.8,1226.3,0.54271682]
[1760115710750,1.983107,1228.8,1226.4,0.54271682]
[1760115711051,1.983107,1228.8,1226.5,0.54271682]
[1760115711255,1.983107,1229.2,1226.0,0.59355561]
[1760115711554,1.983107,1229.2,1226.1,0.54315018]
[1760115711752,0.14157938,1229.4,1226.2,0.54315018]
[1760115711950,0.14157938,1229.4,1226.3,0.54315018]
[1760115712151,0.14157938,1229.4,1226.4,0.54315018]
[1760115712351,0.14157938,1229.4,1226.5,0.54335563]
[1760115712656,0.14157938,1229.4,1226.0,0.59355561]
[1760115712850,0.14157938,1229.4,1226.1,1.13692194]
[1760115713057,0.14157938,1229.4,1226.2,1.13692194]
[1760115713255,1.983107,1229.2,1226.3,0.54336633]
[1760115713455,1.983107,1229.2,1226.4,0.54336633]
[1760115713677,1.983107,1229.2,1226.5,0.54336633]
[1760115713855,1.983107,1229.2,1226.6,0.54336633]
[1760115714153,1.983107,1229.2,1226.1,0.59355561]
[1760115714352,1.983107,1229.2,1226.2,0.54333652]
[1760115714551,1.983107,1229.2,1226.3,0.54333652]
[1760115714756,1.983107,1229.2,1226.4,0.54333652]
[1760115714960,1.983107,1229.2,1226.5,0.54333652]
[1760115715156,1.983107,1229.2,1226.6,0.54333652]
[1760115715352,1.983107,1229.2,1226.1,0.59355561]
[1760115715552,1.983107,1229.2,1226.2,0.54381769]
[1760115715851,1.983107,1229.1,1226.3,0.54381769]
[1760115716056,1.983107,1229.1,1226.4,0.54381769]
[1760115716256,1.983107,1229.1,1226.5,0.54381769]
[1760115716456,1.983107,1229.2,1226.6,0.54381769]
[1760115716653,1.983107,1229.2,1226.1,0.59355561]
[1760115716853,1.983107,1228.9,1226.2,0.54360735]
[1760115717058,1.983107,1228.9,1226.3,0.24360735]
[1760115717254,1.983107,1228.9,1226.2,0.59355561]
[1760115717452,1.983107,1229.0,1226.2,0.59355561]
[1760115718560,2.91792918,1229.4,1226.2,0.59355561]
[1760115719163,0.14157938,1229.4,1226.2,0.59355561]
[1760115719362,0.14157938,1229.4,1226.3,0.59355561]
[1760115720162,0.14157938,1229.4,1226.4,0.59355561]
[1760115720462,2.12468638,1229.4,1226.4,0.59355561]
[1760115721866,0.14157938,1229.4,1226.3,0.59355561]
[1760115722965,0.14157938,1229.4,1226.2,0.59355561]
[1760115724967,0.14157938,1229.4,1226.1,0.59355561]
[1760115725168,1.983107,1229.2,1226.1,0.59355561]
[1760115726168,1.983107,1229.1,1226.1,0.59355561]
[1760115726567,1.983107,1229.2,1226.1,0.59355561]
[1760115727268,1.983107,1229.2,1226.0,0.59355561]
[1760115727663,0.14157938,1229.4,1226.0,0.59355561]
[1760115727964,0.14157938,1229.4,1225.9,0.59355561]
[1760115728267,0.14157938,1229.4,1225.8,0.59355561]
[1760115728467,2.7763498,1229.2,1225.7,0.59355561]
[1760115728664,1.983107,1228.7,1225.7,0.59355561]
[1760115729068,1.983107,1228.7,1225.8,0.53915838]
[1760115729267,1.983107,1228.7,1225.9,0.53915838]
[1760115729468,1.983107,1228.7,1226.0,0.53915838]
[1760115729667,1.983107,1228.7,1225.5,0.79140748]
[1760115729668,1.983107,1228.5,1226.1,0.53915838]
[1760115729868,1.983107,1228.5,1226.2,0.53915838]
[1760115730168,1.983107,1228.5,1226.3,0.53915838]
[1760115730366,1.983107,1228.6,1226.4,0.5385466]
[1760115730566,1.983107,1228.6,1226.1,0.59355561]
[1760115730765,1.983107,1228.6,1226.2,0.53850649]
[1760115730968,1.983107,1228.6,1226.3,0.53850649]
[1760115731263,1.983107,1228.6,1226.4,0.53850649]
[1760115731465,1.983107,1228.6,1226.1,0.59355561]
[1760115731666,1.983107,1228.6,1226.2,0.53853146]
[1760115731866,1.983107,1228.6,1226.3,0.53853146]
[1760115732170,1.983107,1228.6,1226.4,0.53853146]
[1760115732365,1.983107,1228.6,1226.1,0.59355561]
[1760115732366,1.983107,1228.6,1226.5,0.53884133]
[1760115732570,1.983107,1228.8,1226.0,0.59355561]
[1760115732767,1.983107,1228.8,1226.1,0.53910785]
[1760115733069,1.983107,1228.8,1225.7,0.79140748]
[1760115733070,1.983107,1229.1,1226.2,1.13266346]
[1760115733267,1.983107,1229.1,1226.3,0.53910785]
[1760115733470,1.983107,1229.1,1226.4,0.53910785]
[1760115733770,1.983107,1229.3,1226.5,0.53910785]
[1760115733970,1.983107,1229.3,1226.6,0.53910785]
[1760115734171,1.983107,1229.3,1226.7,0.53910785]
[1760115734368,1.983107,1229.3,1226.2,0.59355561]
[1760115734573,0.14157938,1229.4,1226.3,0.53874799]
[1760115734867,0.14157938,1229.4,1226.4,0.53874799]
[1760115735069,0.14157938,1229.4,1226.1,0.59355561]
[1760115735070,0.14157938,1229.4,1226.5,0.53874799]
[1760115735268,0.14157938,1229.4,1226.6,0.53874799]
[1760115735568,0.14157938,1229.4,1226.7,0.53874799]
[1760115735773,0.14157938,1229.4,1226.1,0.59355561]
[1760115736068,0.14157938,1229.4,1226.2,0.53878183]
[1760115736271,0.14157938,1229.4,1226.3,0.53878183]
[1760115736469,0.14157938,1229.4,1226.4,0.53878183]
[1760115736770,1.983107,1228.8,1226.5,0.53878183]
[1760115736970,1.983107,1228.8,1226.1,0.59355561]
[1760115737170,1.983107,1228.8,1226.2,0.5389014]
[1760115737470,1.983107,1228.8,1226.3,0.5389014]
[1760115737674,1.983107,1228.8,1226.4,0.5389014]
[1760115737973,1.983107,1228.8,1226.5,0.5389014]
[1760115738173,1.983107,1228.7,1226.1,0.59355561]
[1760115738374,1.983107,1228.7,1226.2,0.53881724]
[1760115738669,1.983107,1228.9,1226.3,0.53881724]
[1760115738870,1.983107,1228.9,1226.4,0.53881724]
[1760115739069,1.983107,1228.9,1226.5,0.53881724]
[1760115739368,1.983107,1228.9,1226.6,0.53881724]
[1760115739573,1.983107,1228.9,1226.2,0.59355561]
[1760115739774,1.983107,1228.9,1226.3,0.5387346]
[1760115739970,1.983107,1228.9,1226.4,0.5387346]
[1760115740172,1.983107,1228.9,1226.5,0.5387346]
[1760115740469,1.983107,1228.9,1226.6,0.5387346]
[1760115740670,1.983107,1228.9,1226.2,0.59355561]
[1760115740869,1.983107,1228.9,1226.3,0.53887776]
[1760115741069,1.983107,1228.9,1226.4,0.53887776]
[1760115741268,1.983107,1228.9,1226.5,0.53887776]
[1760115741470,1.983107,1228.9,1226.6,0.53887776]
[1760115741671,1.983107,1228.9,1226.2,0.59355561]
[1760115741873,1.983107,1228.9,1226.3,0.53913517]
[1760115742173,1.983107,1228.9,1226.4,0.53913517]
[1760115742372,1.983107,1228.9,1226.5,0.53913517]
[1760115742573,1.983107,1228.9,1226.6,0.53913517]
[1760115742774,1.983107,1228.9,1226.1,0.59355561]
[1760115743070,1.983107,1229.3,1226.2,0.53938524]
[1760115743275,1.983107,1229.3,1225.7,0.59355561]
[1760115743474,1.983107,1228.8,1225.8,0.53942297]
[1760115743671,1.983107,1228.8,1225.9,0.53942297]
[1760115743974,1.983107,1228.8,1226.0,0.53942297]
[1760115744175,1.983107,1228.8,1226.1,0.53942297]
[1760115744374,1.983107,1228.9,1226.2,0.53942297]
[1760115744572,1.983107,1228.9,1225.7,0.59355561]
[1760115744774,1.983107,1228.9,1225.8,0.53919423]
[1760115744972,1.983107,1228.9,1225.9,0.53919423]
[1760115745173,1.983107,1228.9,1226.0,0.53919423]
[1760115745473,1.983107,1229.0,1226.1,0.53919423]
[1760115745670,1.983107,1229.0,1226.2,0.53919423]
[1760115745871,1.983107,1229.0,1226.3,0.53919423]
[1760115746077,1.983107,1229.0,1225.8,0.59355561]
[1760115746376,1.983107,1229.0,1225.9,0.53918736]
[1760115746576,1.983107,1229.0,1226.0,0.53918736]
[1760115746777,1.983107,1229.0,1226.1,0.53918736]
[1760115746972,1.983107,1228.6,1226.2,0.53918736]
[1760115747272,1.983107,1228.6,1225.8,0.59355561]
[1760115747572,1.983107,1228.6,1225.9,0.5384408]
[1760115747771,1.983107,1228.6,1226.0,0.5384408]
[1760115747973,1.983107,1228.6,1226.1,0.5384408]
[1760115748172,1.983107,1228.6,1226.2,0.5384408]
[1760115748373,1.983107,1228.6,1225.8,0.59355561]
[1760115748575,1.983107,1228.6,1225.9,0.53867858]
[1760115748778,1.983107,1228.6,1226.0,0.53867858]
[1760115749078,1.983107,1228.6,1226.1,0.53867858]
[1760115749377,1.983107,1228.6,1226.2,0.53867858]
[1760115749577,1.983107,1228.6,1225.8,0.59355561]
[1760115749772,1.983107,1228.6,1225.9,0.53875429]
[1760115749975,1.983107,1228.6,1226.0,0.53875429]
[1760115750176,1.983107,1228.6,1226.1,0.53875429]
[1760115750375,1.983107,1228.6,1226.2,0.53875429]
[1760115750574,1.983107,1228.5,1226.3,0.53875429]